[Event "Gibraltar Challengers A 2020"]
[Site "Caleta"]
[Date "2020.01.23"]
[Round "4.25"]
[White "Kukic, Boris"]
[Black "Perez Ruiz, Santiago"]
[Result "1-0"]
[ECO "C54"]
[WhiteElo "2056"]
[BlackElo "1953"]
[Annotator "NA"]
[PlyCount "99"]
[EventDate "2020.01.20"]
[EventType "swiss"]
[EventCountry "GGB"]
[SourceTitle "playchess.com"]
[Source "ChessBase"]
[SourceQuality "1"]
[TimeControl "6600+10"]

1. e4 {[%emt 0:00:00]} e5 {[%emt 0:04:28]} 2. Nf3 {[%emt 0:00:00]} Nc6 {[%emt 0:00:11]} 3. Bc4 {[%emt 0:00:19]} Bc5 {[%emt 0:04:44]} 4. c3 {[%emt 0:00:31]} Nf6 {[%emt 0:00:12]} 5. d3 {[%emt 0:03:08]} d6 {[%emt 0:02:23]} 6. h3 {[%emt 0:00:13]} h6 {[%emt 0:00:16]} 7. O-O {[%emt 0:00:04]} O-O {[%emt 0:00:20]} 8. d4 {[%emt 0:00:19] C54: Giuoco Piano: 4 c3 Nf6, main lines with 5 d4 and 5 d3} (8. Re1 a6 9. a4 a5 10. Nbd2 Be6 11. b3 Re8 12. Bb5 Bd7 13. Bb2 Ba7 14. Nf1 Ne7 15. Bxd7 Qxd7 16. Ng3 {1-0 (40) Le,Q (2713)-Vidit,S (2721) Moscow 2019}) 8... exd4 {[%emt 0:02:05]} 9. cxd4 {[%emt 0:00:07]} Bb6 {[%emt 0:02:51]} 10. Nc3 {[%emt 0:00:11]} a6 {[%emt 0:02:17]} (10... Nxe4 $1 $11 {keeps the balance.} 11. Re1 (11. Nxe4 d5 $15 {[%mdl 64] Double Attack}) 11... Nxc3 12. bxc3 Qf6) 11. Re1 {[%emt 0:00:12]} Bd7 {[%emt 0:02:32]} 12. a3 {[%emt 0:00:08]} Re8 $146 {[%emt 0:03:10]} ({Predecessor:} 12... Ne7 13. e5 Nh5 14. Nh2 g6 15. Bxh6 Ng7 16. Bg5 Ne6 17. Bf6 Re8 18. Nd5 dxe5 19. Qd2 {1-0 (19) Nguyen,T-Nguyen,D Ho Chi Minh City 2016}) 13. Ba2 {[%emt 0:00:17]} Qb8 {[%emt 0:01:37]} 14. Qd3 {[%emt 0:04:46]} Qa7 {[%emt 0:10:54]} 15. Be3 {[%emt 0:02:40]} Ne7 {[%emt 0:01:43]} 16. Rac1 {[%emt 0:01:45]} Rad8 {[%emt 0:00:59] [#]} 17. Qc2 {[%emt 0:01:10]} (17. Qd2 $1 $18) 17... Ng6 {[%emt 0:05:16]} 18. e5 {[%emt 0:01:10]} Nxe5 {[%emt 0:05:37]} 19. dxe5 {[%emt 0:00:36]} dxe5 {[%emt 0:00:20]} 20. Bxb6 {[%emt 0:00:13]} Qxb6 {[%emt 0:00:41]} 21. Rxe5 {[%emt 0:00:10]} Bc6 {[%emt 0:01:41]} 22. Rxe8+ {[%emt 0:00:15]} Rxe8 {[%emt 0:00:32]} 23. Qb3 {[%emt 0:00:32]} Qxb3 {[%emt 0:01:24]} 24. Bxb3 {[%emt 0:00:07]} Bxf3 {[%emt 0:00:23]} 25. gxf3 {[%emt 0:00:12]} Nh5 {[%emt 0:00:12]} 26. Ne4 {[%emt 0:01:18]} Re7 {[%emt 0:00:29]} 27. Rd1 {[%emt 0:01:20]} Nf4 {[%emt 0:00:19]} 28. Kh2 {[%emt 0:00:34]} Kh7 {[%emt 0:00:18]} 29. Ng3 {[%emt 0:00:29]} g6 {[%emt 0:00:24]} 30. Rd4 {[%emt 0:00:49]} g5 {[%emt 0:01:07]} 31. Bd5 {[%emt 0:00:43]} c5 {[%emt 0:00:40]} 32. Be4+ {[%emt 0:00:13]} f5 {[%emt 0:00:34]} 33. Nxf5 {[%emt 0:00:44]} cxd4 {[%emt 0:00:53]} 34. Nxe7+ {[%emt 0:00:11]} Kg7 {[%emt 0:00:16]} 35. Nf5+ {[%emt 0:00:15]} Kf6 {[%emt 0:00:26]} 36. Nxd4 {[%emt 0:00:13]} Ke5 {[%emt 0:00:12]} 37. Nf5 {[%emt 0:00:49]} h5 {[%emt 0:00:20]} 38. Ne7 {[%emt 0:00:25]} b6 {[%emt 0:02:41]} 39. Ng6+ {[%emt 0:00:11]} Kd4 {[%emt 0:00:09]} 40. Nxf4 {[%emt 0:00:13]} gxf4 {[%emt 0:00:05]} 41. h4 {[%emt 0:00:06]} Kc4 {[%emt 0:00:12]} 42. Bg6 {[%emt 0:00:55]} Kb3 $18 {[%emt 0:00:31]} 43. Bxh5 {[%emt 0:00:09]} b5 {[%emt 0:00:15]} 44. Bg6 {[%emt 0:00:17]} Kxb2 {[%emt 0:00:08]} 45. h5 {[%emt 0:00:05]} Kxa3 {[%emt 0:00:11]} 46. h6 {[%emt 0:00:05]} a5 {[%emt 0:00:16]} 47. h7 {[%emt 0:00:07]} b4 {[%emt 0:00:11]} 48. h8=Q {[%emt 0:00:08]} a4 {[%emt 0:00:33]} 49. Qa1+ {[%emt 0:00:11]} Kb3 {[%emt 0:00:09]} 50. Bf7+ {[%emt 0:00:09]} 1-0

[Event "Gibraltar Challengers A 2020"]
[Site "Caleta"]
[Date "2020.01.23"]
[Round "4.26"]
[White "Karlsson, Jorgen"]
[Black "Aura, Kristian"]
[Result "1-0"]
[ECO "B13"]
[WhiteElo "2054"]
[BlackElo "1928"]
[Annotator "NA"]
[PlyCount "73"]
[EventDate "2020.01.20"]
[EventType "swiss"]
[EventCountry "GGB"]
[SourceTitle "playchess.com"]
[Source "ChessBase"]
[SourceQuality "1"]
[TimeControl "6600+10"]

{[%evp 10,73,5,12,-1,32767,27,-4,-2,32767,-14,-19,32767,32767,-43,32767,32767,32767,-42,-54,-58,32767,32767,32767,-73,32767,32767,32767,-62,32767,32767,-58,-61,32767,-69,-90,32767,32767,-89,-85,-99,-97,32767,32767,32767,32767,203,32767,208,214,219,32767,270,32767,32767,364,32767,387,32767,32767,32767,719,32767,32767,1795,1912]} 1. d4 {[%emt 0:05:47]} d5 {[%emt 0:00:00]} 2. Bf4 {[%emt 0:01:00]} c5 {[%emt 0:00:29]} 3. e3 {[%emt 0:00:12]} cxd4 {[%emt 0:00:24]} 4. exd4 {[%emt 0:00:10]} Nc6 {[%emt 0:00:16]} 5. c3 {[%emt 0:00:47]} Bf5 {[%emt 0:00:30]} 6. Nd2 {[%emt 0:02:57] B13: Caro-Kann: Exchange Variation and Panov-Botvinnik Attack} e6 {[%emt 0:00:23]} 7. Ngf3 {[%emt 0:00:34]} Nge7 {[%emt 0:01:08]} (7... Bd6 8. Bxd6 Qxd6 9. Nh4 Bg6 10. g3 Nf6 11. Nxg6 hxg6 12. Bd3 O-O-O 13. Nf3 {½-½ (55) Duda,J (2758)-Artemiev,V (2731) Moscow 2019}) 8. h3 {[%emt 0:00:41]} Ng6 {[%emt 0:06:57]} 9. Bh2 {[%emt 0:00:49]} Bd6 {[%emt 0:03:34]} 10. Bxd6 $146 {[%emt 0:13:02]} ({Predecessor:} 10. Bb5 Bxh2 11. Nxh2 h5 12. O-O Nf4 13. Ndf3 {½-½ (27) Neverov,V (2496)-Atakisi,U (2403) Skopje 2019}) 10... Qxd6 {[%emt 0:00:06]} 11. g3 {[%emt 0:00:07]} O-O {[%emt 0:01:23]} 12. Bg2 {[%emt 0:07:38]} f6 {[%emt 0:10:30]} 13. O-O {[%emt 0:00:54]} e5 {[%emt 0:01:15]} 14. Nb3 {[%emt 0:00:22]} e4 {[%emt 0:01:27]} 15. Nh2 {[%emt 0:03:18]} Rae8 {[%emt 0:02:49]} 16. Qh5 {[%emt 0:04:24]} Bc8 {[%emt 0:03:01]} 17. f4 {[%emt 0:00:59]} b6 {[%emt 0:05:36]} 18. Ng4 {[%emt 0:02:05]} a5 {[%emt 0:18:30]} 19. Ne3 {[%emt 0:03:27]} Ba6 {[%emt 0:02:48]} 20. Rfe1 $2 {[%emt 0:01:57]} (20. Qxd5+ $16 Qxd5 21. Nxd5 Bxf1 22. Bxf1) 20... Nge7 {[%emt 0:00:50]} 21. Nd2 {[%emt 0:02:43]} g6 {[%emt 0:00:28]} 22. Qh6 {[%emt 0:04:18]} f5 {[%emt 0:12:23]} 23. Bf1 {[%emt 0:00:28]} Bxf1 {[%emt 0:00:47]} 24. Rxf1 {[%emt 0:00:57]} Qf6 {[%emt 0:00:43]} 25. Rf2 {[%emt 0:02:48]} Nxd4 {[%emt 0:06:29]} 26. cxd4 {[%emt 0:00:06]} Qxd4 {[%emt 0:00:08]} 27. Ndf1 {[%emt 0:00:03]} Qb4 $2 {[%emt 0:03:40]} (27... Qf6 $11) 28. Rd1 {[%emt 0:05:22]} Rd8 {[%emt 0:02:02] [#]} 29. Nc2 $1 {[%emt 0:00:51]} Qd6 {[%emt 0:12:52]} 30. Nfe3 {[%emt 0:03:50]} Rd7 {[%emt 0:00:18]} 31. Nd4 {[%emt 0:06:22]} Rc8 {[%emt 0:00:37]} 32. g4 {[%emt 0:00:47]} Kh8 {[%emt 0:03:26]} 33. gxf5 {[%emt 0:03:14]} Rg8 {[%emt 0:02:21]} 34. Kh2 {[%emt 0:00:40]} Qf6 {[%emt 0:00:55]} 35. Ng4 {[%emt 0:01:39]} Qd6 {[%emt 0:02:08]} 36. Ne5 {[%emt 0:00:42]} Nxf5 $18 {[%emt 0:01:30]} 37. Nxf5 {[%emt 0:00:17] Pin} 1-0

[Event "Gibraltar Challengers A 2020"]
[Site "Caleta"]
[Date "2020.01.23"]
[Round "4.27"]
[White "Gostelow, David W"]
[Black "Hladik, Lumir"]
[Result "1-0"]
[ECO "A47"]
[WhiteElo "1901"]
[BlackElo "2018"]
[Annotator "NA"]
[PlyCount "109"]
[EventDate "2020.01.20"]
[EventType "swiss"]
[EventCountry "GGB"]
[SourceTitle "playchess.com"]
[Source "ChessBase"]
[SourceQuality "1"]
[TimeControl "6600+10"]

{[%evp 9,109,14,32767,32767,32767,32767,32767,3,32767,32767,29,32767,69,47,68,56,32767,32767,32767,32767,32767,90,103,32767,32767,32767,136,32767,32767,134,32767,32767,32767,145,223,32767,32767,32767,191,83,98,70,158,147,177,32767,32767,32767,32767,32767,32767,32767,32767,32767,32767,140,137,135,32767,32767,156,159,32767,32767,189,131,32767,129,32767,32767,32767,32767,32767,32767,32767,32767,32767,32767,32767,262,32767,276,460,303,1202,1442,32767,32767,5510,29985,29989,29991,29991,29989,29989,29991,29990,29992,29993,29992,29993,3358]} 1. d4 {[%emt 0:00:00]} Nf6 {[%emt 0:00:02]} 2. Bf4 {[%emt 0:00:00]} ({Predecessor:} 2. Nf3 e6 3. Bf4 d6 4. e3 Nbd7 5. h3 b6 6. c4 Bb7 7. Nc3 Be7 8. Be2 O-O 9. Qc2 Re8 {1-0 (34) Flament,F (2190)-Gregoire,T (2005) Bethune 2000}) 2... e6 {[%emt 0:00:47]} 3. e3 {[%emt 0:00:02]} b6 {[%emt 0:00:51]} 4. Nf3 {[%emt 0:00:05]} Bb7 {[%emt 0:00:14]} 5. Be2 {[%emt 0:00:40]} Be7 {[%emt 0:00:20]} 6. h3 {[%emt 0:00:23]} O-O {[%emt 0:00:11]} 7. O-O {[%emt 0:00:13]} d6 {[%emt 0:00:22]} 8. c4 {[%emt 0:00:40] A47: 1 d4 Nf6 2 Nf3 b6: Torre, London and Colle Systems} Nbd7 {[%emt 0:01:01]} 9. Nc3 {[%emt 0:00:22]} Re8 {[%emt 0:01:18]} 10. Qc2 {[%emt 0:01:25]} Nf8 $146 {[%emt 0:03:49]} (10... Bf8 11. Rfd1 Qc8 12. Bh2 e5 13. Rac1 g6 14. b4 Bg7 15. Qb3 h6 {1-0 (26) Grischuk,A (2795)-Kosteniuk,A (2541) Sochi 2014}) 11. Rfd1 {[%emt 0:01:46]} Ng6 {[%emt 0:00:34]} 12. Bh2 {[%emt 0:00:11]} Bf8 {[%emt 0:01:20]} 13. b4 {[%emt 0:03:36]} c6 {[%emt 0:04:18]} 14. a4 {[%emt 0:09:36]} Qc7 {[%emt 0:03:43]} 15. Rd2 {[%emt 0:09:01]} Rad8 {[%emt 0:00:44]} 16. Qd1 {[%emt 0:09:32]} Qc8 {[%emt 0:00:38]} 17. a5 {[%emt 0:02:31]} Nd7 {[%emt 0:11:49]} (17... c5 $14) 18. axb6 {[%emt 0:09:29]} axb6 {[%emt 0:00:21]} 19. Ra7 {[%emt 0:02:07]} Nb8 {[%emt 0:00:33]} 20. Ra1 {[%emt 0:07:42]} Be7 {[%emt 0:04:27]} 21. Qb3 {[%emt 0:06:14]} Rd7 {[%emt 0:00:51]} (21... c5 $16 {keeps fighting.}) 22. Na4 {[%emt 0:05:55]} Bd8 {[%emt 0:00:14]} 23. b5 {[%emt 0:06:22]} cxb5 {[%emt 0:05:51]} (23... c5 $16) 24. cxb5 {[%emt 0:01:23]} (24. Qxb5 $18 {and White stays clearly on top.} Bc6 25. Qb3 (25. Nxb6 Qb7 $16)) 24... Be4 {[%emt 0:06:59]} 25. Nc3 {[%emt 0:01:42]} Bb7 {[%emt 0:05:16]} (25... Bxf3 $1 $14 26. Bxf3 d5) 26. Rc2 {[%emt 0:00:07]} Be7 {[%emt 0:11:52]} 27. Rac1 {[%emt 0:00:32]} Qd8 {[%emt 0:01:57]} 28. Na2 {[%emt 0:00:42]} Bd5 {[%emt 0:02:10]} 29. Bc4 {[%emt 0:00:04]} Be4 {[%emt 0:02:21]} 30. Rc3 {[%emt 0:04:44]} d5 {[%emt 0:01:02]} 31. Be2 {[%emt 0:00:13]} Bxf3 {[%emt 0:02:17]} 32. Bxf3 {[%emt 0:01:56]} Bd6 {[%emt 0:02:14]} 33. Bxd6 {[%emt 0:00:28]} Rxd6 {[%emt 0:00:02]} 34. Nb4 {[%emt 0:00:16]} Nh4 {[%emt 0:01:38]} 35. Be2 {[%emt 0:05:23]} Qg5 {[%emt 0:00:44]} 36. g3 {[%emt 0:00:08]} Nf5 {[%emt 0:00:43]} 37. Kh2 {[%emt 0:01:10]} h5 {[%emt 0:00:09]} 38. h4 {[%emt 0:00:35]} Qf6 {[%emt 0:00:57]} 39. Nd3 {[%emt 0:02:05]} g5 {[%emt 0:02:41]} 40. hxg5 {[%emt 0:03:13]} Qxg5 {[%emt 0:00:29]} 41. Ne5 {[%emt 0:02:57]} h4 {[%emt 0:00:56]} 42. g4 {[%emt 0:00:07]} Ne7 {[%emt 0:03:14]} 43. f4 {[%emt 0:00:14]} Qg7 {[%emt 0:00:43]} 44. Kh3 {[%emt 0:00:41]} f6 {[%emt 0:00:57]} 45. Nf3 {[%emt 0:01:48]} Kf7 $2 {[%emt 0:00:19]} (45... Rd7 {was necessary.} 46. Bd3 (46. Nxh4 Kf7 $16) 46... Kf7) 46. Rc7 {[%emt 0:00:39]} ({Less strong is} 46. Nxh4 Rh8 $16) 46... Nd7 $2 {[%emt 0:00:11]} (46... Rd7 47. Rxd7 (47. Nxh4 Rh8 $16) 47... Nxd7) 47. Qb4 {[%emt 0:00:30]} Nf5 {[%emt 0:00:28]} 48. Rg1 {[%emt 0:00:52]} Qf8 {[%emt 0:02:55]} 49. gxf5 {[%emt 0:00:19]} exf5 {[%emt 0:00:13] [#]} 50. Ne5+ $1 {[%emt 0:02:00]} fxe5 {[%emt 0:00:25]} 51. dxe5 {[%emt 0:00:14]} Ree6 {[%emt 0:02:19]} 52. Bh5+ {[%emt 0:01:08]} Ke7 {[%emt 0:00:04]} 53. exd6+ {[%emt 0:00:20]} Kd8 {[%emt 0:00:11]} 54. Qa3 {[%emt 0:00:57]} Rxd6 {[%emt 0:00:57] [#]} 55. Rc6 $18 {[%emt 0:00:08]} (55. Rxd7+ $142 $1 Kxd7 (55... Rxd7 56. Qxf8+) 56. Qa7+ Kd8 57. Qb8+ Kd7 58. Qxf8 Rg6 59. Rxg6 d4 60. Qf7+ Kd8 61. Rg8#) 1-0

[Event "Gibraltar Challengers A 2020"]
[Site "Caleta"]
[Date "2020.01.23"]
[Round "4.28"]
[White "Verhoef, Jaap"]
[Black "Fischer, Robert"]
[Result "1-0"]
[ECO "B15"]
[WhiteElo "2015"]
[BlackElo "1923"]
[Annotator "NA"]
[PlyCount "53"]
[EventDate "2020.01.20"]
[EventType "swiss"]
[EventCountry "GGB"]
[SourceTitle "playchess.com"]
[Source "ChessBase"]
[SourceQuality "1"]
[TimeControl "6600+10"]

1. e4 {[%emt 0:00:00]} c6 {[%emt 0:00:00]} 2. d4 {[%emt 0:00:00]} d5 {[%emt 0:00:00]} 3. Nd2 {[%emt 0:00:00]} dxe4 {[%emt 0:00:04]} 4. Nxe4 {[%emt 0:00:01]} Nf6 {[%emt 0:00:02]} 5. Nxf6+ {[%emt 0:00:13]} exf6 {[%emt 0:00:03]} 6. Ne2 {[%emt 0:03:32] B15: Caro-Kann: 3 Nc3: 3...g6 and 3...dxe4 4 Nxe4 Nf6 5 Nxf6+ exf6} (6. c3 Bd6 7. Bd3 O-O 8. Qc2 Re8+ 9. Ne2 h5 10. O-O h4 11. h3 Nd7 12. Bf4 Nf8 13. Qd2 Ng6 14. Bxd6 Qxd6 15. Rae1 Be6 16. Bxg6 fxg6 {½-½ (30) Popov,I (2636)-Artemiev,V (2731) Moscow 2019}) 6... Bd6 {[%emt 0:01:21]} 7. Bf4 {[%emt 0:00:09]} O-O {[%emt 0:00:51]} 8. Qd2 {[%emt 0:00:02]} Be6 {[%emt 0:03:02]} 9. Nc3 {[%emt 0:08:44]} Re8 {[%emt 0:02:25]} 10. O-O-O $146 {[%emt 0:00:13]} ({Predecessor:} 10. Be2 Bxf4 11. Qxf4 Bc4 12. Qd2 Bxe2 13. Nxe2 Qe7 {½-½ (49) Weiler,W-Epding,V Cologne 1994}) 10... Bb4 {[%emt 0:02:56]} 11. a3 {[%emt 0:06:21]} Qa5 {[%emt 0:06:11]} 12. axb4 {[%emt 0:04:05]} Qa1+ {[%emt 0:01:23]} 13. Nb1 {[%emt 0:00:02]} Ba2 {[%emt 0:09:54]} 14. Qc3 {[%emt 0:03:04]} Bxb1 {[%emt 0:04:20]} 15. Kd2 {[%emt 0:02:49]} a5 {[%emt 0:01:42]} 16. Bc4 {[%emt 0:02:14]} axb4 {[%emt 0:04:41]} 17. Qxb4 {[%emt 0:10:49]} Qa7 {[%emt 0:06:18]} 18. Bxf7+ {[%emt 0:08:53]} Kxf7 {[%emt 0:00:45]} 19. Rxb1 {[%emt 0:00:12]} Na6 {[%emt 0:02:50]} (19... Qa4 $16 20. Qxa4 (20. Qxb7+ Re7 $16) 20... Rxa4) 20. Qc4+ {[%emt 0:00:31]} Kg6 {[%emt 0:00:30]} 21. h4 {[%emt 0:01:12]} Rad8 $2 {[%emt 0:02:19]} (21... h6 $16 22. c3 (22. Qd3+ Kf7 $18) 22... Kh7) 22. h5+ {[%emt 0:01:39]} Kf5 {[%emt 0:00:19]} 23. Be3 {[%emt 0:00:01]} Nc5 {[%emt 0:08:56]} 24. g4+ {[%emt 0:05:30]} Kxg4 {[%emt 0:02:30]} 25. d5+ $2 {[%emt 0:07:19]} (25. Rbg1+ {mates} Kf5 {[#]} 26. Rg5+ $1 {[%mdl 512]} fxg5 27. Qf7+ {[%mdl 64] Double Attack} Kg4 28. Rg1+ Kh4 29. Bxg5+ {[%mdl 64] Double Attack} Kh3 30. Qf3+ Kh2 31. Rh1#) 25... Re4 $2 {[%emt 0:00:41] [#]} (25... Ne4+ 26. Qxe4+ Rxe4 27. Bxa7 Kf5) 26. f3+ $1 {[%emt 0:00:25] Double Attack, Pin} Kxf3 {[%emt 0:01:34]} 27. Qf1+ {[%emt 0:00:26] Kxe3+} 1-0

[Event "Gibraltar Challengers A 2020"]
[Site "Caleta"]
[Date "2020.01.23"]
[Round "4.29"]
[White "Hng, Mei-Xian Eunice"]
[Black "Skutta, Bernd"]
[Result "1-0"]
[ECO "B08"]
[WhiteElo "1661"]
[BlackElo "1998"]
[Annotator "NA RC"]
[PlyCount "113"]
[EventDate "2020.01.20"]
[EventType "swiss"]
[EventCountry "GGB"]
[SourceTitle "playchess.com"]
[Source "ChessBase"]
[SourceQuality "1"]
[TimeControl "6600+10"]

{[%evp 9,111,35,32767,32767,32767,32767,32767,32767,32767,-8,32767,32767,32767,11,32767,32767,32767,32767,0,32767,-6,32767,32767,-25,-9,-26,-12,-22,32767,-14,32767,32767,-15,32767,32767,82,83,106,32767,191,345,375,372,328,663,696,654,794,1544,967,914,966,872,1540,2324,1148,897,757,912,568,456,622,860,32767,1087,32767,3592,32767,32767,1956,4814,1237,32767,32767,32767,32767,6191,32767,29989,29975,32767,32767,29989,32767,32767,32767,32767,1160,29997,32767,32767,32767,32767,32767,32767,32767,32767,32767,32767,32767,29989,32767,32767,29993]} 1. e4 {[%emt 0:00:00]} g6 {[%emt 0:03:28]} 2. d4 {[%emt 0:00:07]} Bg7 {[%emt 0:00:05]} 3. Nc3 {[%emt 0:00:18]} c6 {[%emt 0:00:38]} 4. Nf3 {[%emt 0:05:26]} d6 {[%emt 0:00:41]} 5. h3 {[%emt 0:04:49]} Nf6 {[%emt 0:02:21]} 6. Be2 {[%emt 0:00:41]} O-O {[%emt 0:00:46]} 7. O-O {[%emt 0:02:32]} Nbd7 {[%emt 0:00:48]} 8. e5 {[%emt 0:08:36]} Ne8 {[%emt 0:05:53]} 9. Bg5 {[%emt 0:10:17] B08: Pirc Defence: Classical System} (9. Re1 dxe5 10. dxe5 Nc7 11. Bf4 Nb6 12. Qc1 Ne6 13. Bh6 Nd5 14. Ne4 f5 15. Ng3 b5 16. Bxg7 Kxg7 17. c4 bxc4 18. Bxc4 {½-½ (37) Sheng,J (2483)-Gabuzyan,H (2610) Greensboro 2019}) 9... f6 {[%emt 0:02:45]} 10. exf6 {[%emt 0:07:26]} exf6 {[%emt 0:04:43]} 11. Be3 {[%emt 0:01:46]} d5 {[%emt 0:09:27]} 12. Qd2 {[%emt 0:09:23]} Rf7 $146 {[%emt 0:05:49]} ({Predecessor:} 12... g5 13. Nh2 Nd6 14. f4 h6 15. fxg5 hxg5 16. b3 Nf7 {0-1 (34) Roebers,J (2097)-Lanchava,T (2314) Hilversum 2019}) 13. a4 {[%emt 0:03:32]} Nd6 {[%emt 0:02:03]} 14. Bf4 {[%emt 0:04:22]} Nf8 {[%emt 0:03:31]} 15. Bd3 {[%emt 0:06:01]} Ne6 {[%emt 0:03:45]} 16. Bg3 {[%emt 0:02:34]} f5 {[%emt 0:20:57]} 17. Ne5 {[%emt 0:09:37]} Rf8 {[%emt 0:01:05]} 18. Ne2 $1 {[%emt 0:02:01]} Ne4 {[%emt 0:12:11]} 19. Bxe4 $1 {[%emt 0:03:39]} dxe4 {[%emt 0:01:17]} 20. Rad1 {[%emt 0:04:48]} g5 {[%emt 0:03:24]} 21. f4 {[%emt 0:02:46]} Bxe5 {[%emt 0:09:04]} 22. dxe5 {[%emt 0:02:09]} Qb6+ {[%emt 0:00:45]} 23. Kh2 {[%emt 0:01:10]} Qxb2 {[%emt 0:09:00]} 24. fxg5 {[%emt 0:03:10]} Rd8 {[%emt 0:00:46]} (24... Qa3 {is a better defense.} 25. g6 hxg6) 25. Qxd8+ {[%emt 0:05:30]} Nxd8 {[%emt 0:00:08]} 26. Rxd8+ {[%emt 0:00:04]} Kg7 $2 {[%emt 0:01:41] [#]} (26... Kf7 27. Rfd1 Qxc2) 27. e6 $1 {[%emt 0:00:56]} Bxe6 {[%emt 0:00:45]} 28. Rxa8 {[%emt 0:00:07]} Qxc2 {[%emt 0:01:01]} 29. Nd4 {[%emt 0:01:27]} Qc4 {[%emt 0:00:06]} 30. Nxe6+ {[%emt 0:01:45]} Qxe6 {[%emt 0:00:02]} 31. Rxa7 {[%emt 0:00:08]} e3 {[%emt 0:01:39]} 32. Rxb7+ {[%emt 0:02:21]} Kg6 {[%emt 0:00:02]} 33. Rbb1 {[%emt 0:01:18]} Qe4 {[%emt 0:00:22]} 34. a5 {[%emt 0:00:48]} f4 {[%emt 0:01:05]} 35. Bh4 {[%emt 0:01:55]} e2 $2 {[%emt 0:00:37]} (35... Kh5 36. a6 e2) 36. Rfe1 {[%emt 0:00:34]} Kh5 {[%emt 0:00:47]} 37. Bf2 {[%emt 0:00:36]} f3 {[%emt 0:00:40]} 38. g3 {[%emt 0:00:45]} Qd3 {[%emt 0:00:30]} 39. Ra1 {[%emt 0:00:25]} Qa6 {[%emt 0:00:06]} 40. h4 {[%emt 0:00:11]} h6 {[%emt 0:00:14]} 41. gxh6 {[%emt 0:00:11]} Kxh6 {[%emt 0:00:02]} 42. Ra3 {[%emt 0:00:19]} Kh5 {[%emt 0:01:07]} 43. Rxf3 {[%emt 0:00:04]} Qxa5 {[%emt 0:00:35]} 44. Re3 {[%emt 0:00:05]} Kg4 {[%emt 0:00:21]} 45. R1xe2 {[%emt 0:00:07]} Qb5 {[%emt 0:00:10]} 46. Re4+ {[%emt 0:00:21]} Kf3 {[%emt 0:00:04]} 47. R4e3+ {[%emt 0:00:01]} Kg4 {[%emt 0:00:01]} 48. Rd2 {[%emt 0:00:10]} c5 {[%emt 0:00:12]} 49. Rc3 {[%emt 0:00:10]} c4 {[%emt 0:00:05]} 50. Rd4+ {[%emt 0:00:03]} Kf5 {[%emt 0:00:06]} 51. Rdxc4 {[%emt 0:00:20]} Qb2 {[%emt 0:00:03]} 52. Kg2 {[%emt 0:00:11]} Qb7+ {[%emt 0:00:04]} 53. Rf3+ {[%emt 0:00:06]} Kg6 {[%emt 0:00:09]} 54. Rcf4 {[%emt 0:00:04]} Qa8 {[%emt 0:00:07]} 55. g4 {[%emt 0:00:03]} Qb7 {[%emt 0:00:11]} 56. h5+ {[%emt 0:00:12]} Kg7 {[%emt 0:00:07]} 57. Rf7+ {[%emt 0:00:04]} 1-0

[Event "Gibraltar Challengers A 2020"]
[Site "Caleta"]
[Date "2020.01.23"]
[Round "4.30"]
[White "Alami, Halim"]
[Black "Hermes, Geoff R"]
[Result "1-0"]
[ECO "B07"]
[WhiteElo "1987"]
[BlackElo "1832"]
[Annotator "NA"]
[PlyCount "35"]
[EventDate "2020.01.20"]
[EventType "swiss"]
[EventCountry "GGB"]
[SourceTitle "playchess.com"]
[Source "ChessBase"]
[SourceQuality "1"]
[TimeControl "6600+10"]

1. e4 {[%emt 0:00:00]} d6 {[%emt 0:00:00]} 2. d4 {[%emt 0:00:02]} Nf6 {[%emt 0:00:01]} 3. Bd3 {[%emt 0:00:57]} e5 {[%emt 0:00:28]} 4. c3 {[%emt 0:00:51]} Be7 {[%emt 0:00:58]} 5. Ne2 {[%emt 0:00:14]} O-O {[%emt 0:00:32]} 6. O-O {[%emt 0:00:53]} c6 {[%emt 0:02:56]} 7. f4 {[%emt 0:00:30]} Nbd7 {[%emt 0:01:11]} 8. Nd2 {[%emt 0:01:29]} Re8 {[%emt 0:03:53]} 9. Nf3 {[%emt 0:01:43]} Bf8 {[%emt 0:01:37]} 10. Ng3 $14 {[%emt 0:02:52]} Qc7 {[%emt 0:12:37]} 11. fxe5 {[%emt 0:01:25]} dxe5 {[%emt 0:00:53]} 12. Ng5 {[%emt 0:01:53]} Nb6 {[%emt 0:17:38]} 13. Nh5 {[%emt 0:12:25]} Ng4 {[%emt 0:23:11]} 14. Rxf7 {[%emt 0:03:19]} Qxf7 {[%emt 0:00:11]} 15. Nxf7 {[%emt 0:00:08]} Kxf7 {[%emt 0:00:04]} 16. h3 {[%emt 0:00:37]} Nf6 {[%emt 0:01:08]} 17. Nxf6 {[%emt 0:00:14]} gxf6 {[%emt 0:00:28]} 18. Qh5+ {[%emt 0:00:28]} 1-0

[Event "Gibraltar Challengers A 2020"]
[Site "Caleta"]
[Date "2020.01.23"]
[Round "4.31"]
[White "Herzwurm, Robert"]
[Black "Kunnavakkam, Sudarshanagopal Vin"]
[Result "1-0"]
[ECO "B23"]
[WhiteElo "1979"]
[BlackElo "1786"]
[Annotator "NA"]
[PlyCount "43"]
[EventDate "2020.01.20"]
[EventType "swiss"]
[EventCountry "GGB"]
[SourceTitle "playchess.com"]
[Source "ChessBase"]
[SourceQuality "1"]
[TimeControl "6600+10"]

{[%evp 9,43,-7,61,57,32767,32767,72,57,70,32767,32767,32767,92,32767,32767,32767,32767,32767,32767,32767,32767,355,32767,32767,1262,976,1591,1807,2150,1954,882,1462,32767,32767,32767,29979]} 1. e4 {[%emt 0:00:00]} c5 {[%emt 0:01:12]} 2. Nc3 {[%emt 0:00:08]} Nc6 {[%emt 0:00:33]} 3. f4 {[%emt 0:00:17]} g6 {[%emt 0:00:17]} 4. Nf3 {[%emt 0:00:09]} Bg7 {[%emt 0:01:33]} 5. Bb5 {[%emt 0:00:21]} a6 {[%emt 0:00:28]} (5... Nd4 $11) 6. Bxc6 $1 {[%emt 0:00:10]} dxc6 {[%emt 0:00:07]} 7. O-O {[%emt 0:01:11] B23: Closed Sicilian: Lines without g3} (7. e5 Nh6 8. O-O O-O 9. Kh1 Nf5 10. Ne4 b6 11. d3 a5 12. Bd2 Ba6 13. b3 Bh6 14. g4 Nd4 15. Nxd4 cxd4 {1-0 (35) Da Silva,F (1847)-Silveira,J (1661) Fortaleza 2019}) 7... Nf6 {[%emt 0:00:14]} 8. d3 {[%emt 0:00:57]} O-O {[%emt 0:03:37]} 9. Qe1 {[%emt 0:01:18]} Re8 {[%emt 0:13:57]} 10. Kh1 $146 {[%emt 0:10:49]} ({Predecessor:} 10. Qh4 Nh5 11. g4 Nf6 12. f5 Nd7 13. Bh6 Bh8 14. Ng5 Bd4+ 15. Kh1 Bf6 16. fxg6 fxg6 17. Rf2 {1-0 (17) Garcia,L-Rios,J Yumbo 2009}) 10... Nd7 {[%emt 0:07:57]} 11. f5 {[%emt 0:13:30]} e6 {[%emt 0:19:22]} 12. fxg6 {[%emt 0:09:26]} hxg6 {[%emt 0:02:29]} 13. e5 {[%emt 0:08:04]} f6 {[%emt 0:07:41]} 14. Qg3 {[%emt 0:10:43]} Nf8 {[%emt 0:03:54]} 15. Ne4 {[%emt 0:06:11]} b6 {[%emt 0:01:07]} 16. exf6 {[%emt 0:06:46]} Bxf6 {[%emt 0:01:22] [#]} 17. Ne5 $1 {[%emt 0:02:49]} Bxe5 {[%emt 0:01:50]} 18. Qxe5 {[%emt 0:00:14]} Nh7 {[%emt 0:00:14]} 19. Bh6 {[%emt 0:05:01]} Ra7 {[%emt 0:01:02] [#]} 20. Rf6 $18 {[%emt 0:07:12]} Nxf6 {[%emt 0:01:04]} 21. Nxf6+ {[%emt 0:00:28]} Kf7 {[%emt 0:00:04]} 22. Rf1 {[%emt 0:06:25] Decoy} 1-0